[Event "*** SCC Grand Prix: Titled Tuesday Blitz"]
[Site "Chess.com"]
[Date "2020.10.06"]
[Round "2"]
[White "banane_verte"]
[Black "Arfan48"]
[Result "1-0"]
[WhiteElo "2433"]
[BlackElo "2226"]
[TimeControl "180+1"]
[EndTime "10:17:16 PDT"]
[Termination "banane_verte won by resignation"]

1. e4 {[%clk 0:03:00.9]} 1... c6 {[%clk 0:02:58.7]} 2. d4 {[%clk 0:03:00.9]}
2... d5 {[%clk 0:02:58.7]} 3. Nc3 {[%clk 0:03:01.3]} 3... dxe4 {[%clk
0:02:58.7]} 4. Nxe4 {[%clk 0:03:02.2]} 4... Nf6 {[%clk 0:02:58.9]} 5. Nxf6+
{[%clk 0:03:02.4]} 5... exf6 {[%clk 0:02:58.7]} 6. g3 {[%clk 0:03:03]} 6... Bd6
{[%clk 0:02:51.9]} 7. Bg2 {[%clk 0:03:02.2]} 7... O-O {[%clk 0:02:52.5]} 8. Ne2
{[%clk 0:03:02.4]} 8... Re8 {[%clk 0:02:46.2]} 9. Be3 {[%clk 0:03:02.2]} 9...
Qb6 {[%clk 0:02:23.9]} 10. Rb1 {[%clk 0:02:52.8]} 10... Qa5+ {[%clk 0:02:23.6]}
11. Qd2 {[%clk 0:02:49.2]} 11... Qxa2 {[%clk 0:02:16.9]} 12. O-O {[%clk
0:02:49.1]} 12... Qe6 {[%clk 0:01:44]} 13. d5 {[%clk 0:02:41.8]} 13... Qe7
{[%clk 0:01:40.6]} 14. c4 {[%clk 0:02:31]} 14... Bf5 {[%clk 0:01:36.2]} 15. Nd4
{[%clk 0:02:27.2]} 15... Bxb1 {[%clk 0:01:35.3]} 16. dxc6 {[%clk 0:02:20.6]}
16... Nxc6 {[%clk 0:01:32.6]} 17. Nxc6 {[%clk 0:02:19.2]} 17... bxc6 {[%clk
0:01:32.6]} 18. Rxb1 {[%clk 0:02:19.1]} 18... Red8 {[%clk 0:01:26.4]} 19. Qa5
{[%clk 0:02:12.8]} 19... Qb7 {[%clk 0:01:05.2]} 20. b4 {[%clk 0:02:09]} 20... a6
{[%clk 0:00:49.1]} 21. Qb6 {[%clk 0:02:06.8]} 21... Qxb6 {[%clk 0:00:41.7]} 22.
Bxb6 {[%clk 0:02:07.7]} 22... Rdc8 {[%clk 0:00:41.6]} 23. c5 {[%clk 0:02:01.7]}
23... Be5 {[%clk 0:00:33]} 24. Rb3 {[%clk 0:01:56.7]} 24... g6 {[%clk 0:00:21]}
25. Ra3 {[%clk 0:01:56.4]} 25... f5 {[%clk 0:00:20.2]} 26. Bf1 {[%clk
0:01:55.9]} 26... Re8 {[%clk 0:00:15.5]} 27. Rxa6 {[%clk 0:01:55.2]} 27... Rxa6
{[%clk 0:00:14.7]} 28. Bxa6 {[%clk 0:01:56.1]} 28... Bc3 {[%clk 0:00:12.9]} 29.
Ba5 {[%clk 0:01:54.5]} 29... Re1+ {[%clk 0:00:11.4]} 30. Kg2 {[%clk 0:01:54.5]}
30... Bd4 {[%clk 0:00:11.7]} 31. Kf3 {[%clk 0:01:38.6]} 31... g5 {[%clk
0:00:11.6]} 32. h3 {[%clk 0:01:31.6]} 32... Kg7 {[%clk 0:00:11.1]} 33. Bb7
{[%clk 0:01:27.7]} 33... Rf1 {[%clk 0:00:09.8]} 34. Ke2 {[%clk 0:01:26.3]} 34...
Rxf2+ {[%clk 0:00:10.3]} 35. Kd3 {[%clk 0:01:27.2]} 35... Rf3+ {[%clk 0:00:10]}
36. Kxd4 {[%clk 0:01:27.4]} 36... Rxg3 {[%clk 0:00:09.8]} 37. Bxc6 {[%clk
0:01:27]} 37... f4 {[%clk 0:00:06.5]} 38. Ke4 {[%clk 0:01:17.8]} 38... Re3+
{[%clk 0:00:05.6]} 39. Kd4 {[%clk 0:01:17.4]} 39... Re7 {[%clk 0:00:04.6]} 40.
Bd8 {[%clk 0:01:15.4]} 40... Ra7 {[%clk 0:00:04.2]} 41. Bxg5 {[%clk 0:01:15.1]}
41... Kg6 {[%clk 0:00:03.9]} 42. Bxf4 {[%clk 0:01:15.1]} 42... f5 {[%clk
0:00:04.3]} 43. b5 {[%clk 0:01:14.7]} 43... Ra4+ {[%clk 0:00:03.3]} 44. Ke5
{[%clk 0:01:15.3]} 44... Ra3 {[%clk 0:00:02.8]} 45. b6 {[%clk 0:01:14.2]} 45...
Ra1 {[%clk 0:00:02.6]} 46. b7 {[%clk 0:01:12.1]} 46... Re1+ {[%clk 0:00:03.5]}
47. Kd5 {[%clk 0:01:12.6]} 47... Rd1+ {[%clk 0:00:03.9]} 48. Kc4 {[%clk
0:01:13.1]} 48... Rd8 {[%clk 0:00:03.1]} 49. b8=Q {[%clk 0:01:13.1]} 1-0

[Event "*** SCC Grand Prix: Titled Tuesday Blitz"]
[Site "Chess.com"]
[Date "2020.10.06"]
[Round "2"]
[White "Andreikka"]
[Black "davidkalashian"]
[Result "1-0"]
[WhiteElo "2893"]
[BlackElo "2572"]
[TimeControl "180+1"]
[EndTime "10:17:20 PDT"]
[Termination "Andreikka won on time"]

1. c4 {[%clk 0:03:00.9]} 1... Nf6 {[%clk 0:02:59.3]} 2. Nc3 {[%clk 0:03:00.3]}
2... e6 {[%clk 0:02:59.1]} 3. e4 {[%clk 0:02:59.5]} 3... d5 {[%clk 0:02:53]} 4.
cxd5 {[%clk 0:02:58.6]} 4... exd5 {[%clk 0:02:52.6]} 5. e5 {[%clk 0:02:56.4]}
5... Ne4 {[%clk 0:02:52.4]} 6. Nf3 {[%clk 0:02:52]} 6... Nc6 {[%clk 0:02:45.6]}
7. d4 {[%clk 0:02:50.9]} 7... Bb4 {[%clk 0:02:19.3]} 8. Qc2 {[%clk 0:02:49.8]}
8... O-O {[%clk 0:01:50.1]} 9. Bd3 {[%clk 0:02:47.4]} 9... f5 {[%clk 0:01:49.3]}
10. O-O {[%clk 0:02:35.8]} 10... Ne7 {[%clk 0:01:41.4]} 11. a3 {[%clk
0:02:32.9]} 11... Ba5 {[%clk 0:01:34.4]} 12. b4 {[%clk 0:02:32.4]} 12... Bb6
{[%clk 0:01:34]} 13. Na4 {[%clk 0:02:33]} 13... c6 {[%clk 0:01:31.7]} 14. Nxb6
{[%clk 0:02:28]} 14... axb6 {[%clk 0:01:28.9]} 15. a4 {[%clk 0:02:18.2]} 15...
h6 {[%clk 0:01:21.4]} 16. Ra3 {[%clk 0:02:04.6]} 16... Be6 {[%clk 0:01:17.6]}
17. Qb2 {[%clk 0:01:51.4]} 17... Ng6 {[%clk 0:01:13.7]} 18. a5 {[%clk
0:01:49.5]} 18... b5 {[%clk 0:00:51.6]} 19. Qc2 {[%clk 0:01:44.2]} 19... Qe7
{[%clk 0:00:29.5]} 20. Rb3 {[%clk 0:01:39.6]} 20... Rac8 {[%clk 0:00:25.8]} 21.
Re1 {[%clk 0:01:35.2]} 21... Kh8 {[%clk 0:00:16.8]} 22. Rb1 {[%clk 0:01:32.8]}
22... Kg8 {[%clk 0:00:15.7]} 23. Rb3 {[%clk 0:01:06.6]} 23... Kh8 {[%clk
0:00:14.6]} 24. Qb2 {[%clk 0:01:06.9]} 24... f4 {[%clk 0:00:13.2]} 25. Qc2
{[%clk 0:01:02.8]} 25... Bf5 {[%clk 0:00:12.4]} 26. Rb1 {[%clk 0:00:51.2]} 26...
Nh4 {[%clk 0:00:05.9]} 27. Bxf4 {[%clk 0:00:41]} 27... Nxf3+ {[%clk 0:00:04.3]}
28. gxf3 {[%clk 0:00:41.3]} 28... Bh7 {[%clk 0:00:02]} 29. Qc1 {[%clk
0:00:26.7]} 1-0

[Event "*** SCC Grand Prix: Titled Tuesday Blitz"]
[Site "Chess.com"]
[Date "2020.10.06"]
[Round "2"]
[White "NMZanette"]
[Black "amatatanav"]
[Result "1/2-1/2"]
[WhiteElo "2215"]
[BlackElo "2406"]
[TimeControl "180+1"]
[EndTime "10:17:20 PDT"]
[Termination "Game drawn by repetition"]

1. e4 {[%clk 0:02:54.7]} 1... c5 {[%clk 0:02:51.3]} 2. Nf3 {[%clk 0:02:53.6]}
2... Nc6 {[%clk 0:02:48.3]} 3. Bb5 {[%clk 0:02:52.9]} 3... e6 {[%clk 0:02:47.8]}
4. O-O {[%clk 0:02:52.3]} 4... Nge7 {[%clk 0:02:47.5]} 5. Re1 {[%clk 0:02:51.8]}
5... a6 {[%clk 0:02:46.3]} 6. Bf1 {[%clk 0:02:51]} 6... d5 {[%clk 0:02:38.2]} 7.
exd5 {[%clk 0:02:49]} 7... Nxd5 {[%clk 0:02:39.1]} 8. d4 {[%clk 0:02:47.2]} 8...
Nf6 {[%clk 0:02:38.8]} 9. dxc5 {[%clk 0:02:41.7]} 9... Qxd1 {[%clk 0:02:38.3]}
10. Rxd1 {[%clk 0:02:41.2]} 10... Bxc5 {[%clk 0:02:39.2]} 11. h3 {[%clk
0:02:15.1]} 11... Nb4 {[%clk 0:02:13.9]} 12. Na3 {[%clk 0:02:13.9]} 12... Ne4
{[%clk 0:02:02.8]} 13. Be3 {[%clk 0:02:12.3]} 13... Bxe3 {[%clk 0:02:02.4]} 14.
fxe3 {[%clk 0:02:10.5]} 14... Nd5 {[%clk 0:02:01.8]} 15. Bd3 {[%clk 0:02:03.4]}
15... Nc5 {[%clk 0:01:45]} 16. e4 {[%clk 0:01:59.8]} 16... Nf4 {[%clk
0:01:18.5]} 17. Nc4 {[%clk 0:01:51.7]} 17... b5 {[%clk 0:01:09.9]} 18. Nd6+
{[%clk 0:01:42.6]} 18... Ke7 {[%clk 0:01:09.8]} 19. e5 {[%clk 0:01:36.6]} 19...
Nfxd3 {[%clk 0:01:06]} 20. cxd3 {[%clk 0:01:35.6]} 20... Nb7 {[%clk 0:01:01]}
21. Ne4 {[%clk 0:01:32.1]} 21... f5 {[%clk 0:00:50.5]} 22. exf6+ {[%clk
0:01:30.7]} 22... gxf6 {[%clk 0:00:51.4]} 23. Rac1 {[%clk 0:01:30.6]} 23... f5
{[%clk 0:00:37.1]} 24. Nc5 {[%clk 0:01:22.8]} 24... Nxc5 {[%clk 0:00:23.2]} 25.
Rxc5 {[%clk 0:01:22.5]} 25... Kd6 {[%clk 0:00:23.5]} 26. d4 {[%clk 0:01:19.8]}
26... Bb7 {[%clk 0:00:23.6]} 27. Ne5 {[%clk 0:01:15.2]} 27... Rhg8 {[%clk
0:00:22.6]} 28. Nf7+ {[%clk 0:01:12.3]} 28... Kd7 {[%clk 0:00:17.5]} 29. Rd2
{[%clk 0:01:07]} 29... Rac8 {[%clk 0:00:16.1]} 30. Ne5+ {[%clk 0:01:05.6]} 30...
Kd6 {[%clk 0:00:15.3]} 31. Rdc2 {[%clk 0:01:03.4]} 31... Rxc5 {[%clk 0:00:14]}
32. Rxc5 {[%clk 0:00:53.6]} 32... Rxg2+ {[%clk 0:00:14.3]} 33. Kf1 {[%clk
0:00:53.6]} 33... Rxb2 {[%clk 0:00:14.7]} 34. Nf7+ {[%clk 0:00:51]} 34... Kd7
{[%clk 0:00:13.3]} 35. Ne5+ {[%clk 0:00:51.1]} 35... Kd8 {[%clk 0:00:09.4]} 36.
Nf7+ {[%clk 0:00:50.9]} 36... Kd7 {[%clk 0:00:07.4]} 37. Ne5+ {[%clk 0:00:51]}
37... Kd6 {[%clk 0:00:05.9]} 38. Nf7+ {[%clk 0:00:51.1]} 38... Kd7 {[%clk
0:00:05.2]} 1/2-1/2

[Event "*** SCC Grand Prix: Titled Tuesday Blitz"]
[Site "Chess.com"]
[Date "2020.10.06"]
[Round "2"]
[White "Shankovskyi"]
[Black "Playgood28"]
[Result "1-0"]
[WhiteElo "2492"]
[BlackElo "2305"]
[TimeControl "180+1"]
[EndTime "10:17:23 PDT"]
[Termination "Shankovskyi won on time"]

1. e4 {[%clk 0:02:56]} 1... e5 {[%clk 0:02:59.3]} 2. Nf3 {[%clk 0:02:56]} 2...
d6 {[%clk 0:02:59.1]} 3. Bc4 {[%clk 0:02:56.3]} 3... Be7 {[%clk 0:02:57.5]} 4.
O-O {[%clk 0:02:56.2]} 4... Nf6 {[%clk 0:02:57.1]} 5. d3 {[%clk 0:02:53.1]} 5...
O-O {[%clk 0:02:55.1]} 6. a4 {[%clk 0:02:53]} 6... a5 {[%clk 0:02:54.3]} 7. h3
{[%clk 0:02:50.4]} 7... c6 {[%clk 0:02:54]} 8. Nc3 {[%clk 0:02:49.8]} 8... Na6
{[%clk 0:02:45.2]} 9. Re1 {[%clk 0:02:47.7]} 9... Nc7 {[%clk 0:02:37.4]} 10. Ne2
{[%clk 0:02:43.4]} 10... Be6 {[%clk 0:02:28.6]} 11. Ng3 {[%clk 0:02:42.2]} 11...
Re8 {[%clk 0:02:05.3]} 12. Bg5 {[%clk 0:02:28.5]} 12... h6 {[%clk 0:02:01.7]}
13. Bd2 {[%clk 0:02:23.7]} 13... Bxc4 {[%clk 0:01:40.7]} 14. dxc4 {[%clk
0:02:23.4]} 14... Ne6 {[%clk 0:01:40.8]} 15. Nf5 {[%clk 0:02:19.8]} 15... Bf8
{[%clk 0:01:39.1]} 16. Kh2 {[%clk 0:02:01.1]} 16... Kh7 {[%clk 0:01:38.2]} 17.
Ng3 {[%clk 0:01:19.7]} 17... g6 {[%clk 0:01:32.7]} 18. Bc3 {[%clk 0:01:07.8]}
18... Qc7 {[%clk 0:01:17.8]} 19. Qd2 {[%clk 0:01:07.3]} 19... b6 {[%clk
0:01:13.1]} 20. Rad1 {[%clk 0:01:07.2]} 20... Rad8 {[%clk 0:01:08.8]} 21. Qe3
{[%clk 0:01:02.9]} 21... Nf4 {[%clk 0:00:53.5]} 22. Ne2 {[%clk 0:00:59.4]} 22...
Ne6 {[%clk 0:00:48.3]} 23. b3 {[%clk 0:00:59.4]} 23... Bg7 {[%clk 0:00:47.4]}
24. Nc1 {[%clk 0:00:53.6]} 24... Nd7 {[%clk 0:00:45.9]} 25. Nd3 {[%clk
0:00:51.3]} 25... Ndc5 {[%clk 0:00:45.3]} 26. g3 {[%clk 0:00:49.4]} 26... Nxd3
{[%clk 0:00:44]} 27. Rxd3 {[%clk 0:00:50.3]} 27... Nc5 {[%clk 0:00:43.5]} 28.
Rd2 {[%clk 0:00:49.2]} 28... Ne6 {[%clk 0:00:35.9]} 29. Red1 {[%clk 0:00:48.9]}
29... Qe7 {[%clk 0:00:15]} 30. Nh4 {[%clk 0:00:46.3]} 30... Qc7 {[%clk
0:00:13.7]} 31. Ng2 {[%clk 0:00:45.7]} 31... f6 {[%clk 0:00:11.1]} 32. Qe2
{[%clk 0:00:45]} 32... f5 {[%clk 0:00:07.3]} 33. exf5 {[%clk 0:00:43.4]} 33...
gxf5 {[%clk 0:00:06.5]} 34. Nh4 {[%clk 0:00:44.3]} 34... f4 {[%clk 0:00:04.8]}
35. Qe4+ {[%clk 0:00:43.9]} 35... Kg8 {[%clk 0:00:03.2]} 36. Nf5 {[%clk
0:00:42.5]} 36... fxg3+ {[%clk 0:00:01.9]} 37. fxg3 {[%clk 0:00:42.1]} 1-0

[Event "*** SCC Grand Prix: Titled Tuesday Blitz"]
[Site "Chess.com"]
[Date "2020.10.06"]
[Round "2"]
[White "Kaua18"]
[Black "Matols"]
[Result "1-0"]
[WhiteElo "2462"]
[BlackElo "2269"]
[TimeControl "180+1"]
[EndTime "10:17:23 PDT"]
[Termination "Kaua18 won on time"]

1. e4 {[%clk 0:03:00]} 1... e6 {[%clk 0:03:00]} 2. d4 {[%clk 0:02:59.2]} 2... d5
{[%clk 0:03:00]} 3. Nd2 {[%clk 0:02:58.6]} 3... c5 {[%clk 0:02:58.8]} 4. exd5
{[%clk 0:02:55.7]} 4... Qxd5 {[%clk 0:02:57.7]} 5. dxc5 {[%clk 0:02:56]} 5...
Qxc5 {[%clk 0:02:56.7]} 6. Ngf3 {[%clk 0:02:55.2]} 6... Nf6 {[%clk 0:02:55]} 7.
Bd3 {[%clk 0:02:54.9]} 7... Qc7 {[%clk 0:02:48.6]} 8. O-O {[%clk 0:02:53.4]}
8... Nc6 {[%clk 0:02:45.5]} 9. c3 {[%clk 0:02:50.4]} 9... Be7 {[%clk 0:02:43.3]}
10. Re1 {[%clk 0:02:50.7]} 10... O-O {[%clk 0:02:42.3]} 11. Qe2 {[%clk 0:02:51]}
11... b6 {[%clk 0:02:41]} 12. Ne4 {[%clk 0:02:51.2]} 12... Bb7 {[%clk
0:02:32.3]} 13. Bg5 {[%clk 0:02:46.3]} 13... Nxe4 {[%clk 0:02:18.3]} 14. Qxe4
{[%clk 0:02:42.2]} 14... g6 {[%clk 0:02:16.2]} 15. Qh4 {[%clk 0:02:37]} 15...
Rfd8 {[%clk 0:02:04.9]} 16. Bc4 {[%clk 0:02:27.1]} 16... h5 {[%clk 0:01:40.4]}
17. Bxe6 {[%clk 0:02:02.5]} 17... fxe6 {[%clk 0:01:36.2]} 18. Rxe6 {[%clk
0:01:57.8]} 18... Bxg5 {[%clk 0:01:19.1]} 19. Qxg5 {[%clk 0:01:53.2]} 19... Rd7
{[%clk 0:01:13.1]} 20. Rxg6+ {[%clk 0:01:45.8]} 20... Rg7 {[%clk 0:01:12.5]} 21.
Qxh5 {[%clk 0:01:45.9]} 21... Rf8 {[%clk 0:00:57.4]} 22. Ng5 {[%clk 0:01:29]}
22... Rxg6 {[%clk 0:00:39.7]} 23. Qxg6+ {[%clk 0:01:29.9]} 23... Qg7 {[%clk
0:00:36.3]} 24. Qxg7+ {[%clk 0:01:29.2]} 24... Kxg7 {[%clk 0:00:36.3]} 25. Ne6+
{[%clk 0:01:28.1]} 25... Kf7 {[%clk 0:00:36.5]} 26. Nxf8 {[%clk 0:01:27.1]}
26... Kxf8 {[%clk 0:00:36.5]} 27. Re1 {[%clk 0:01:27.1]} 27... Kf7 {[%clk
0:00:35.4]} 28. h4 {[%clk 0:01:26.1]} 28... Ne7 {[%clk 0:00:34.1]} 29. Kh2
{[%clk 0:01:25.8]} 29... Nf5 {[%clk 0:00:31.6]} 30. g3 {[%clk 0:01:21.9]} 30...
Bf3 {[%clk 0:00:26.9]} 31. Kh3 {[%clk 0:01:13.3]} 31... Nh6 {[%clk 0:00:25.1]}
32. Re3 {[%clk 0:01:10.1]} 32... Bg4+ {[%clk 0:00:20.6]} 33. Kg2 {[%clk
0:01:10]} 33... Nf5 {[%clk 0:00:20.1]} 34. Re4 {[%clk 0:01:09.2]} 34... Bd1
{[%clk 0:00:18.4]} 35. Kh3 {[%clk 0:01:05.6]} 35... Nh6 {[%clk 0:00:15.9]} 36.
g4 {[%clk 0:01:04.3]} 36... Kg6 {[%clk 0:00:09.8]} 37. Re6+ {[%clk 0:01:00.8]}
37... Kg7 {[%clk 0:00:08.8]} 38. g5 {[%clk 0:01:00.7]} 38... Bg4+ {[%clk
0:00:07.1]} 39. Kg3 {[%clk 0:01:01.3]} 39... Bxe6 {[%clk 0:00:07.1]} 40. gxh6+
{[%clk 0:01:02]} 40... Kxh6 {[%clk 0:00:07.3]} 41. b3 {[%clk 0:01:02.4]} 41...
Kg6 {[%clk 0:00:04.8]} 42. Kf4 {[%clk 0:01:02.9]} 42... Bf5 {[%clk 0:00:03]} 43.
Ke5 {[%clk 0:01:01.9]} 1-0

[Event "*** SCC Grand Prix: Titled Tuesday Blitz"]
[Site "Chess.com"]
[Date "2020.10.06"]
[Round "2"]
[White "Kavyev_Ruslan"]
[Black "Aleksey_Sorokin"]
[Result "1-0"]
[WhiteElo "2575"]
[BlackElo "2820"]
[TimeControl "180+1"]
[EndTime "10:17:25 PDT"]
[Termination "Kavyev_Ruslan won by resignation"]

1. d4 {[%clk 0:03:00.9]} 1... Nf6 {[%clk 0:02:59.6]} 2. c4 {[%clk 0:03:01.3]}
2... g6 {[%clk 0:02:59.6]} 3. Nc3 {[%clk 0:03:01.1]} 3... d5 {[%clk 0:02:59.1]}
4. Nf3 {[%clk 0:03:01.7]} 4... Bg7 {[%clk 0:02:58.9]} 5. h4 {[%clk 0:03:02.4]}
5... c6 {[%clk 0:02:56.9]} 6. cxd5 {[%clk 0:03:02.5]} 6... cxd5 {[%clk
0:02:57.8]} 7. Bf4 {[%clk 0:03:03.1]} 7... Nc6 {[%clk 0:02:57.8]} 8. e3 {[%clk
0:03:02.6]} 8... Bf5 {[%clk 0:02:56.6]} 9. Qb3 {[%clk 0:03:00.8]} 9... Na5
{[%clk 0:02:48]} 10. Bb5+ {[%clk 0:02:50.9]} 10... Bd7 {[%clk 0:02:47.6]} 11.
Qb4 {[%clk 0:02:43.3]} 11... Nc6 {[%clk 0:02:45.1]} 12. Qb3 {[%clk 0:02:42.6]}
12... a6 {[%clk 0:02:43.6]} 13. Be2 {[%clk 0:02:40.2]} 13... Na5 {[%clk
0:02:41]} 14. Qb4 {[%clk 0:02:40.4]} 14... b5 {[%clk 0:02:32.4]} 15. a4 {[%clk
0:02:20.5]} 15... Nc6 {[%clk 0:02:04.7]} 16. Qb3 {[%clk 0:02:19.5]} 16... Qa5
{[%clk 0:01:56.9]} 17. O-O {[%clk 0:02:10.9]} 17... b4 {[%clk 0:01:57]} 18. Na2
{[%clk 0:02:07]} 18... Qb6 {[%clk 0:01:55.3]} 19. Nc1 {[%clk 0:02:03.7]} 19...
a5 {[%clk 0:01:50.1]} 20. Nd3 {[%clk 0:02:03.9]} 20... Ne4 {[%clk 0:01:50.1]}
21. Rfc1 {[%clk 0:02:03.2]} 21... O-O {[%clk 0:01:49.8]} 22. Nc5 {[%clk
0:02:03.3]} 22... Nxc5 {[%clk 0:01:47]} 23. Rxc5 {[%clk 0:02:04.2]} 23... e6
{[%clk 0:01:46]} 24. Rac1 {[%clk 0:02:03.7]} 24... Ne7 {[%clk 0:01:34.5]} 25.
Bc7 {[%clk 0:01:55.8]} 25... Qa7 {[%clk 0:00:49.9]} 26. Bd6 {[%clk 0:01:55.1]}
26... Bf6 {[%clk 0:00:39.8]} 27. Rc7 {[%clk 0:01:52.7]} 27... Rfc8 {[%clk
0:00:39.5]} 28. R1c2 {[%clk 0:01:20.3]} 28... Qb6 {[%clk 0:00:30.4]} 29. Rxd7
{[%clk 0:01:13.3]} 29... Nf5 {[%clk 0:00:30.4]} 30. Be5 {[%clk 0:01:08.4]} 30...
Bd8 {[%clk 0:00:28.8]} 31. h5 {[%clk 0:00:57.4]} 31... gxh5 {[%clk 0:00:22.3]}
32. Bd3 {[%clk 0:00:51.1]} 32... Nh6 {[%clk 0:00:22.3]} 33. Bb5 {[%clk
0:00:41.4]} 33... Ng4 {[%clk 0:00:21.3]} 34. Rd6 {[%clk 0:00:40.4]} 34... Qa7
{[%clk 0:00:21.2]} 35. Rdc6 {[%clk 0:00:40.4]} 35... Rxc6 {[%clk 0:00:20.7]} 36.
Rxc6 {[%clk 0:00:39.8]} 36... Bb6 {[%clk 0:00:18.1]} 37. Qc2 {[%clk 0:00:38.1]}
37... Rf8 {[%clk 0:00:17.2]} 38. Ng5 {[%clk 0:00:37.3]} 38... f5 {[%clk
0:00:14.7]} 39. Nxe6 {[%clk 0:00:35.8]} 39... Re8 {[%clk 0:00:12.9]} 40. Nf4
{[%clk 0:00:35.2]} 1-0

[Event "*** SCC Grand Prix: Titled Tuesday Blitz"]
[Site "Chess.com"]
[Date "2020.10.06"]
[Round "2"]
[White "KiranManisha"]
[Black "hurricane7791"]
[Result "0-1"]
[WhiteElo "2348"]
[BlackElo "2700"]
[TimeControl "180+1"]
[EndTime "10:17:27 PDT"]
[Termination "hurricane7791 won by checkmate"]

1. e4 {[%clk 0:03:00.9]} 1... c5 {[%clk 0:02:58.8]} 2. Nf3 {[%clk 0:03:00.2]}
2... d6 {[%clk 0:02:59.1]} 3. d4 {[%clk 0:03:00.2]} 3... cxd4 {[%clk 0:03:00]}
4. Nxd4 {[%clk 0:03:00.7]} 4... Nf6 {[%clk 0:03:00.5]} 5. Nc3 {[%clk 0:03:01]}
5... a6 {[%clk 0:02:58]} 6. Bg5 {[%clk 0:03:00.8]} 6... Nbd7 {[%clk 0:02:57.4]}
7. Qe2 {[%clk 0:03:00.5]} 7... g6 {[%clk 0:02:57.5]} 8. O-O-O {[%clk 0:02:51.7]}
8... Bg7 {[%clk 0:02:57.9]} 9. f4 {[%clk 0:02:51.3]} 9... O-O {[%clk 0:02:56.1]}
10. e5 {[%clk 0:02:49.9]} 10... dxe5 {[%clk 0:02:56.6]} 11. fxe5 {[%clk
0:02:50.8]} 11... Qa5 {[%clk 0:02:57.1]} 12. Re1 {[%clk 0:02:27]} 12... Nd5
{[%clk 0:02:51.1]} 13. Nb3 {[%clk 0:02:15.4]} 13... Nxc3 {[%clk 0:02:47.5]} 14.
Nxa5 {[%clk 0:02:14.8]} 14... Nxe2+ {[%clk 0:02:46.8]} 15. Bxe2 {[%clk
0:02:15.3]} 15... Nxe5 {[%clk 0:02:47.2]} 16. Bxe7 {[%clk 0:02:14.6]} 16... Re8
{[%clk 0:02:47.7]} 17. Bg5 {[%clk 0:02:08]} 17... Bf5 {[%clk 0:01:51.6]} 18. Nc4
{[%clk 0:01:24.7]} 18... h6 {[%clk 0:01:37.4]} 19. Bf4 {[%clk 0:01:09.8]} 19...
Rac8 {[%clk 0:01:20.1]} 20. Bxe5 {[%clk 0:01:08]} 20... Bxe5 {[%clk 0:01:17.5]}
21. Nxe5 {[%clk 0:01:08]} 21... Rxc2+ {[%clk 0:01:14.5]} 22. Kd1 {[%clk
0:01:07.7]} 22... Rxe5 {[%clk 0:01:11.1]} 23. Bf3 {[%clk 0:01:02.2]} 23... Rxe1+
{[%clk 0:01:04]} 24. Rxe1 {[%clk 0:01:03.1]} 24... Rxb2 {[%clk 0:01:04.8]} 25.
Re7 {[%clk 0:01:00]} 25... Be6 {[%clk 0:00:56.6]} 26. a3 {[%clk 0:00:56.7]}
26... b6 {[%clk 0:00:55.2]} 27. Ra7 {[%clk 0:00:55.6]} 27... a5 {[%clk 0:00:55]}
28. Rb7 {[%clk 0:00:55.7]} 28... Kg7 {[%clk 0:00:54.8]} 29. h3 {[%clk
0:00:54.2]} 29... h5 {[%clk 0:00:53.8]} 30. g4 {[%clk 0:00:53.4]} 30... hxg4
{[%clk 0:00:53.6]} 31. hxg4 {[%clk 0:00:54.3]} 31... Kf6 {[%clk 0:00:53.6]} 32.
Be2 {[%clk 0:00:53.9]} 32... Ke5 {[%clk 0:00:53.3]} 33. Rb8 {[%clk 0:00:52.6]}
33... Kd4 {[%clk 0:00:53.3]} 34. Rd8+ {[%clk 0:00:51.8]} 34... Ke3 {[%clk
0:00:53.3]} 35. Ba6 {[%clk 0:00:48.6]} 35... Rb3 {[%clk 0:00:50.3]} 36. a4
{[%clk 0:00:46.9]} 36... Rc3 {[%clk 0:00:47.3]} 37. Be2 {[%clk 0:00:39.4]} 37...
Bb3+ {[%clk 0:00:36]} 38. Ke1 {[%clk 0:00:39.7]} 38... Rc1+ {[%clk 0:00:36.4]}
39. Bd1 {[%clk 0:00:40.2]} 39... Rxd1+ {[%clk 0:00:36.5]} 40. Rxd1 {[%clk
0:00:41]} 40... Bxd1 {[%clk 0:00:37.4]} 41. Kxd1 {[%clk 0:00:41.6]} 41... Kf4
{[%clk 0:00:37.4]} 42. Kd2 {[%clk 0:00:42]} 42... Kxg4 {[%clk 0:00:37.5]} 43.
Kd3 {[%clk 0:00:42.6]} 43... f5 {[%clk 0:00:37.9]} 44. Kc4 {[%clk 0:00:43.2]}
44... f4 {[%clk 0:00:38.3]} 45. Kb5 {[%clk 0:00:43.9]} 45... f3 {[%clk
0:00:38.9]} 46. Kxb6 {[%clk 0:00:44.8]} 46... f2 {[%clk 0:00:39.8]} 47. Kxa5
{[%clk 0:00:45.7]} 47... f1=Q {[%clk 0:00:40.1]} 48. Kb6 {[%clk 0:00:46.6]}
48... Qf8 {[%clk 0:00:40.2]} 49. a5 {[%clk 0:00:47.5]} 49... Qa8 {[%clk
0:00:40.6]} 50. a6 {[%clk 0:00:48.4]} 50... Kf5 {[%clk 0:00:40.8]} 51. a7 {[%clk
0:00:49.3]} 51... g5 {[%clk 0:00:41.4]} 52. Ka6 {[%clk 0:00:50.2]} 52... g4
{[%clk 0:00:42.3]} 53. Kb6 {[%clk 0:00:51.1]} 53... g3 {[%clk 0:00:43.1]} 54.
Ka6 {[%clk 0:00:52]} 54... g2 {[%clk 0:00:44]} 55. Kb6 {[%clk 0:00:52.9]} 55...
g1=Q+ {[%clk 0:00:44.2]} 56. Ka6 {[%clk 0:00:53.8]} 56... Qgxa7+ {[%clk
0:00:44.4]} 57. Kb5 {[%clk 0:00:53.6]} 57... Qc7 {[%clk 0:00:44.5]} 58. Kb4
{[%clk 0:00:53.6]} 58... Qab8+ {[%clk 0:00:45.1]} 59. Ka3 {[%clk 0:00:53.5]}
59... Qca7# {[%clk 0:00:46]} 0-1